fUSD/lending_fUSD_20241202
["ID","MTS","AMOUNT","RATE_DAILY","PERIOD"]
[343987887,1733169817674,-6797.27,0.00026095,120]
[343987888,1733169817714,-1560.09,0.00026095,120]
[343987889,1733169817752,-676.63,0.00026095,120]
[343987890,1733169817791,-4584.49,0.00026095,120]
[343987891,1733169817831,-500.0,0.00026095,120]
[343987892,1733169817868,-557.6,0.00026095,120]
[343987893,1733169817907,-2820.52,0.00026095,120]
[343987894,1733169817946,-3000.0,0.00026095,120]
[343987895,1733169817983,-1361.04,0.00026095,120]
[343987896,1733169818021,-2781.44,0.00026095,120]
[343987897,1733169818058,-1258.23,0.00026095,120]
[343987898,1733169818095,-500.0,0.00026095,120]
[343987899,1733169818133,-500.0,0.00026095,120]
[343987900,1733169818171,-2650.17,0.00026095,120]
[343987901,1733169818209,-3300.64,0.00026095,120]
[343987902,1733169818248,-2017.79,0.00026095,120]
[343987903,1733169818286,-500.0,0.00026095,120]
[343987904,1733169818324,-1286.34,0.00026095,120]
[343987905,1733169818363,-1387.45,0.00026095,120]
[343987906,1733169818403,-3693.67,0.00026095,120]
[343987907,1733169818446,-500.0,0.00026095,120]
[343987908,1733169818488,-3023.16,0.00026095,120]
[343987909,1733169818528,-1193.08,0.00026095,120]
[343987910,1733169818569,-500.0,0.00026095,120]
[343987911,1733169818608,-3240.77,0.00026095,120]
[343987912,1733169818652,-2236.02,0.00026095,120]
[343987913,1733169818709,-1679.56,0.00026095,120]
[343987914,1733169818751,-655.53,0.00026095,120]
[343987915,1733169818790,-500.0,0.00026095,120]
[343987916,1733169818831,-1614.33,0.00026095,120]
[343987917,1733169818870,-1505.75,0.00026095,120]
[343987918,1733169818911,-500.0,0.00026095,120]
[343987919,1733169818954,-500.0,0.00026095,120]
[343987920,1733169818993,-500.0,0.00026095,120]
[343987921,1733169819033,-500.0,0.00026095,120]
[343987922,1733169819072,-500.0,0.00026095,120]
[343987923,1733169819112,-500.0,0.00026369,120]
[343987924,1733169819153,-500.0,0.00026369,120]
[343987925,1733169819198,-500.0,0.00026369,120]
[343987926,1733169819239,-500.0,0.00026369,120]
[343987927,1733169819283,-500.0,0.00026369,120]
[343987928,1733169819325,-500.0,0.00026369,120]
[343987929,1733169819367,-500.0,0.00026369,120]
[343987930,1733169819411,-500.0,0.00026369,120]
[343987931,1733169819456,-500.0,0.00026369,120]
[343987932,1733169819499,-500.0,0.00026369,120]
[343987933,1733169819545,-500.0,0.00026369,120]
[343987934,1733169819586,-500.0,0.00026369,120]
[343987935,1733169819628,-438.45692706,0.00026369,120]
[343987936,1733169819673,-500.0,0.00026369,120]
[343987937,1733169819714,-500.0,0.00026369,120]
[343987938,1733169819752,-500.0,0.00026369,120]
[343987939,1733169819790,-500.0,0.00026369,120]
[343987940,1733169819828,-500.0,0.00026369,120]
[343987941,1733169820327,-500.0,0.00026369,120]
[343987942,1733169820366,-500.0,0.00026369,120]
[343987943,1733169820405,-500.0,0.00026369,120]
[343987944,1733169820446,-500.0,0.00026369,120]
[343987945,1733169820484,-500.0,0.00026369,120]
[343987946,1733169820521,-500.0,0.00026369,120]
[343987947,1733169820559,-500.0,0.00026369,120]
[343987948,1733169820597,-500.0,0.00026369,120]
[343987949,1733169820637,-500.0,0.00026369,120]
[343987950,1733169820675,-500.0,0.00026369,120]
[343987951,1733169820714,-500.0,0.00026369,120]
[343987952,1733169820753,-500.0,0.00026369,120]
[343987953,1733169820792,-569.823259,0.00026369,120]
[343987954,1733169820830,-500.0,0.00026369,120]
[343987955,1733169820866,-500.0,0.00026369,120]
[343987956,1733169820903,-500.0,0.00026369,120]
[343987957,1733169820940,-500.0,0.00026369,120]
[343987958,1733169820974,-320.76783921,0.00026369,120]
[343987959,1733169821009,-500.0,0.00026369,120]
[343987960,1733169821044,-500.0,0.00026369,120]
[343987961,1733169821079,-500.0,0.00026369,120]
[343987962,1733169821114,-500.0,0.00026369,120]
[343987963,1733169821149,-500.0,0.00026369,120]
[343987964,1733169821187,-500.0,0.00026369,120]
[343987965,1733169821221,-500.0,0.00026369,120]
[343987966,1733169821256,-500.0,0.00026369,120]
[343987967,1733169821293,-500.0,0.00026369,120]
[343987968,1733169821329,-500.0,0.00026369,120]
[343987969,1733169821365,-500.0,0.00026369,120]
[343987970,1733169821404,-972.55,0.00026369,120]
[343987971,1733169821445,-976.93,0.00026369,120]
[343987972,1733169821482,-500.0,0.00026369,120]
[343987973,1733169821519,-500.0,0.00026369,120]
[343987974,1733169821557,-500.0,0.00026369,120]
[343987975,1733169821595,-830.72,0.00026369,120]
[343987976,1733169821635,-887.04,0.00026369,120]
[343987977,1733169821675,-500.0,0.00026369,120]
[343987978,1733169821713,-500.0,0.00026369,120]
[343987979,1733169821751,-639.95,0.00026369,120]
[343987980,1733169821786,-500.0,0.00026369,120]
[343987981,1733169821823,-500.0,0.00026369,120]
[343987982,1733169821859,-500.0,0.00026369,120]
[343987983,1733169821894,-2630.4,0.00026369,120]
[343987984,1733169821929,-364.31171151,0.00026369,120]
[343987985,1733169821967,-500.0,0.00026369,120]
[343987986,1733169822004,-500.0,0.00026369,120]
[343987987,1733169822039,-500.0,0.00026369,120]
[343987988,1733169822076,-1084.35,0.00026369,120]
[343987989,1733169822112,-500.0,0.00026369,120]
[343987990,1733169822147,-500.0,0.00026369,120]
[343987991,1733169822183,-500.0,0.00026369,120]
[343987992,1733169822220,-500.0,0.00026369,120]
[343987993,1733169822255,-500.0,0.00026369,120]
[343987994,1733169822291,-2476.13,0.00026369,120]
[343987995,1733169822331,-500.0,0.00026369,120]
[343987996,1733169822368,-500.0,0.00026369,120]
[343987997,1733169822404,-962.0,0.00026369,120]
[343987998,1733169822447,-500.0,0.00026369,120]
[343987999,1733169822486,-549.56,0.00026369,120]
[343988000,1733169822524,-500.0,0.00026369,120]
[343988001,1733169822562,-500.0,0.00026369,120]
[343988002,1733169822601,-735.72,0.00026369,120]
[343988003,1733169822640,-373.98954229,0.00026369,120]
[343988004,1733169822679,-500.0,0.00026369,120]
[343988005,1733169822717,-577.19,0.00026369,120]
[343988006,1733169822753,-500.0,0.00026369,120]
[343988007,1733169822899,-741.16,0.00026369,120]
[343988008,1733169822939,-153.96366955,0.00026369,120]
[343988009,1733169822975,-500.0,0.00026369,120]
[343988010,1733169823011,-895.0,0.00026369,120]
[343988011,1733169823047,-500.0,0.00026369,120]
[343988012,1733169823081,-500.0,0.00026369,120]
[343988013,1733169823114,-500.0,0.00026369,120]
[343988014,1733169823148,-1132.26,0.00026369,120]
[343988015,1733169823183,-500.0,0.00026369,120]
[343988016,1733169823220,-500.0,0.00026369,120]
[343988017,1733169823255,-500.0,0.00026369,120]
[343988018,1733169823291,-1511.73,0.00026369,120]
[343988019,1733169823327,-500.0,0.00026369,120]
[343988020,1733169823363,-500.0,0.00026369,120]
[343988021,1733169823401,-500.0,0.00026369,120]
[343988022,1733169823440,-742.76,0.00026369,120]
[343988023,1733169823479,-1844.92,0.00026369,120]
[343988024,1733169823520,-500.0,0.00026369,120]
[343988025,1733169823559,-300.0,0.00026369,120]
[343988026,1733169823600,-674.34,0.00026369,120]
[343988027,1733169823640,-500.0,0.00026369,120]
[343988028,1733169823679,-656.68,0.00026369,120]
[343988029,1733169823719,-500.0,0.00026369,120]
[343988030,1733169823758,-500.0,0.00026369,120]
[343988031,1733169823797,-1030.51,0.00026369,120]
[343988032,1733169823834,-843.35,0.00026369,120]
[343988033,1733169823872,-500.0,0.00026369,120]
[343988034,1733169823909,-500.0,0.00026369,120]
[343988035,1733169823948,-500.0,0.00026369,120]
[343988036,1733169823984,-500.0,0.00026369,120]
[343988037,1733169824021,-673.42,0.00026369,120]
[343988038,1733169824057,-619.73,0.00026369,120]
[343988039,1733169824095,-1749.32,0.00026369,120]
[343988040,1733169824132,-500.0,0.00026369,120]
[343988041,1733169824172,-500.0,0.00026369,120]
[343988042,1733169824211,-1859.06,0.00026369,120]
[343988043,1733169824251,-503.9824606,0.00026369,120]
[343988044,1733169824289,-500.0,0.00026369,120]
[343988045,1733169824332,-500.0,0.00026369,120]
[343988046,1733169824378,-500.0,0.00026369,120]
[343988047,1733169824435,-500.0,0.00026369,120]
[343988048,1733169824484,-2460.03,0.00026369,120]
[343988049,1733169824530,-500.0,0.00026369,120]
[343988050,1733169824574,-176.29157571,0.00026369,120]
[343988051,1733169824618,-500.0,0.00026369,120]
[343988052,1733169824673,-735.25,0.00026369,120]
[343988053,1733169824715,-1203.83,0.00026369,120]
[343988054,1733169824757,-755.11,0.00026369,120]
[343988055,1733169824797,-150.10343,0.00026369,120]
[343988056,1733169824839,-605.28,0.00026369,120]
[343988057,1733169824879,-314.93357792,0.00026369,120]
[343988058,1733169824922,-1404.0,0.00026369,120]
[343988059,1733169824961,-942.74,0.00026369,120]
[343988060,1733169824999,-578.22,0.00026369,120]
[343988061,1733169825044,-1539.81,0.00026369,120]
[343988062,1733169825082,-411.80169809,0.00026369,120]
[343988063,1733169825122,-714.85,0.00026369,120]
[343988064,1733169825162,-564.14,0.00026369,120]
[343988065,1733169825207,-500.0,0.00026369,120]
[343988066,1733169825247,-500.0,0.00026369,120]
[343988067,1733169825287,-1157.3,0.00026369,90]
[343988068,1733169825327,-500.0,0.00026369,120]
[343988069,1733169825366,-500.0,0.00026369,120]
[343988070,1733169825408,-2248.53,0.00026369,120]
[343988071,1733169825452,-500.0,0.00026369,120]
[343988072,1733169825495,-511.8,0.00026369,120]
[343988073,1733169825536,-500.0,0.00026369,120]
[343988074,1733169825577,-500.0,0.00026369,120]
[343988075,1733169825618,-500.0,0.00026369,120]
[343988076,1733169825662,-990.08,0.00026369,120]
[343988077,1733169825704,-500.0,0.00026369,120]
[343988078,1733169825745,-1429.88,0.00026369,120]
[343988079,1733169825787,-500.0,0.00026369,120]
[343988080,1733169825823,-500.0,0.00026369,120]
[343988081,1733169825860,-500.0,0.00026369,120]
[343988082,1733169825895,-500.0,0.00026369,120]
[343988083,1733169825931,-1022.75,0.00026369,120]
[343988084,1733169825967,-759.91,0.00026369,120]
[343988085,1733169826001,-500.0,0.00026369,120]
[343988086,1733169826039,-500.0,0.00026369,120]
[343988087,1733169826075,-507.65,0.00026369,120]
[343988088,1733169826110,-794.35,0.00026369,120]
[343988089,1733169826144,-1741.18,0.00026369,120]
[343988090,1733169826178,-500.0,0.00026369,120]
[343988091,1733169826215,-951.11,0.00026369,120]
[343988092,1733169826249,-500.0,0.00026369,120]
[343988093,1733169826283,-500.0,0.00026369,120]
[343988094,1733169826316,-500.71,0.00026369,120]
[343988095,1733169826351,-500.0,0.00026369,120]
[343988096,1733169826385,-500.0,0.00026369,120]
[343988097,1733169826422,-500.0,0.00026369,120]
[343988098,1733169826460,-550.23512421,0.00026369,120]
[343988099,1733169826496,-1896.23,0.00026369,120]
[343988100,1733169826532,-500.0,0.00026369,120]
[343988101,1733169826569,-500.0,0.00026369,120]
[343988102,1733169826752,-500.0,0.00026369,120]
[343988103,1733169826802,-500.0,0.00026369,120]
[343988104,1733169826846,-500.0,0.00026369,120]
[343988105,1733169826887,-500.0,0.00026369,120]
[343988106,1733169826926,-895.29,0.00026369,120]
[343988107,1733169826963,-500.0,0.00026369,120]
[343988108,1733169827000,-500.0,0.00026369,120]
[343988109,1733169827037,-715.32,0.00026369,120]
[343988110,1733169827073,-500.0,0.00026369,120]
[343988111,1733169827110,-500.0,0.00026369,120]
[343988112,1733169827146,-500.0,0.00026369,120]
[343988113,1733169827183,-500.0,0.00026369,120]
[343988114,1733169827220,-1200.26,0.00026369,120]
[343988115,1733169827258,-500.0,0.00026369,120]
[343988116,1733169827298,-500.0,0.00026369,120]
[343988117,1733169827336,-1362.16,0.00026369,120]
[343988118,1733169827375,-500.0,0.00026369,120]
[343988119,1733169827416,-500.0,0.00026369,120]
[343988120,1733169827463,-618.4,0.00026369,120]
[343988121,1733169827519,-511.97970579,0.00026369,120]
[343988122,1733169827562,-748.23,0.00026369,120]
[343988123,1733169827603,-500.0,0.00026369,120]
[343988124,1733169827643,-500.0,0.00026369,120]
[343988125,1733169827683,-793.36,0.00026369,120]
[343988126,1733169827722,-1512.73,0.00026369,120]
[343988127,1733169827761,-908.58,0.00026369,120]
[343988128,1733169827800,-3180.24,0.00026369,120]
[343988129,1733169827838,-500.0,0.00026369,120]
[343988130,1733169827875,-1267.07,0.00026369,120]
[343988131,1733169827911,-641.83,0.00026369,120]
[343988132,1733169827946,-500.0,0.00026369,120]
[343988133,1733169827981,-2544.61,0.00026369,120]
[343988134,1733169828019,-500.0,0.00026369,120]
[343988135,1733169828058,-500.0,0.00026369,120]
[343988136,1733169828095,-500.0,0.00026369,120]
[343988137,1733169828135,-1187.33,0.00026369,120]
[343988138,1733169828181,-500.0,0.00026369,120]
[343988139,1733169828221,-500.0,0.00026369,120]
[343988140,1733169828262,-3437.65,0.00026369,120]
[343988141,1733169828302,-500.0,0.00026369,120]
[343988142,1733169828343,-835.54,0.00026369,120]
[343988143,1733169828383,-700.0,0.00026369,120]
[343988144,1733169828426,-500.0,0.00026369,120]
[343988145,1733169828465,-500.0,0.00026369,120]
[343988146,1733169828503,-1643.01,0.00026369,120]
[343988147,1733169828541,-500.0,0.00026369,120]
[343988148,1733169828579,-500.0,0.00026369,120]
[343988149,1733169828619,-500.0,0.00026369,120]
[343988150,1733169828666,-948.79,0.00026369,120]
[343988151,1733169828709,-3325.5,0.00026369,120]
[343988152,1733169828750,-581.49,0.00026369,120]
[343988153,1733169828788,-503.19,0.00026369,120]
[343988154,1733169828828,-1663.95,0.00026369,120]
[343988155,1733169828866,-420.79939577,0.00026369,120]
[343988156,1733169828902,-1118.58,0.00026369,120]
[343988157,1733169828939,-745.04,0.00026369,120]
[343988158,1733169828977,-500.0,0.00026369,120]
[343988159,1733169829014,-500.0,0.00026369,120]
[343988160,1733169829053,-1284.07,0.00026369,120]
[343988161,1733169829091,-890.64,0.00026369,120]
[343988162,1733169829129,-917.02,0.00026369,120]
[343988163,1733169829166,-500.0,0.00026369,120]
[343988164,1733169829213,-580.95,0.00026369,120]
[343988165,1733169829254,-6207.23,0.00026369,120]
[343988166,1733169829295,-500.0,0.00026369,120]
[343988167,1733169829339,-500.0,0.00026369,120]
[343988168,1733169829379,-1114.51,0.00026369,60]
[343988169,1733169829420,-2448.92,0.00026369,120]
[343988170,1733169829467,-500.0,0.00026369,120]
[343988171,1733169829510,-1950.33,0.00026369,120]
[343988172,1733169829555,-3054.87,0.00026369,120]
[343988173,1733169829597,-870.88,0.00026369,120]
[343988174,1733169829641,-2228.68,0.00026369,120]
[343988175,1733169829685,-923.08,0.00026369,120]
[343988176,1733169829733,-500.0,0.00026369,120]
[343988177,1733169829775,-544.54,0.00026369,120]
[343988178,1733169829816,-500.0,0.00026369,120]
[343988179,1733169829856,-500.0,0.00026369,120]
[343988180,1733169829899,-500.0,0.00026369,120]
[343988181,1733169829940,-1092.9,0.00026369,120]
[343988182,1733169829980,-571.61,0.00026369,120]
[343988183,1733169830019,-500.0,0.00026369,120]
[343988184,1733169830058,-811.66,0.00026369,120]
[343988185,1733169830097,-2196.28,0.00026369,120]
[343988186,1733169830506,-500.0,0.00026369,120]
[343988187,1733169830548,-500.0,0.00026369,120]
[343988188,1733169830590,-684.17,0.00026369,120]
[343988189,1733169830632,-190.04725061,0.00026369,120]
[343988190,1733169830673,-500.0,0.00026369,120]
[343988191,1733169830716,-500.0,0.00026369,120]
[343988192,1733169830754,-2668.13,0.00026369,120]
[343988193,1733169830791,-663.27,0.00026369,120]
[343988194,1733169830828,-500.0,0.00026369,120]
[343988195,1733169830866,-535.28,0.00026369,120]
[343988196,1733169830903,-895.09,0.00026369,120]
[343988197,1733169830943,-500.0,0.00026369,120]
[343988198,1733169830981,-500.0,0.00026369,120]
[343988199,1733169831018,-1975.86,0.00026369,120]
[343988200,1733169831052,-500.0,0.00026369,120]
[343988201,1733169831086,-500.0,0.00026369,120]
[343988202,1733169831125,-978.51,0.00026369,120]
[343988203,1733169831163,-1404.4,0.00026369,120]
[343988204,1733169831204,-3927.33,0.00026369,120]
[343988205,1733169831240,-4766.8,0.00026369,120]
[343988206,1733169831275,-500.0,0.00026369,120]
[343988207,1733169831310,-1607.08,0.00026369,120]
[343988208,1733169831345,-500.0,0.00026369,120]
[343988209,1733169831383,-841.46,0.00026369,120]
[343988210,1733169831420,-500.0,0.00026369,120]
[343988211,1733169831460,-2073.17,0.00026369,120]
[343988212,1733169831497,-547.35441748,0.00026369,120]
[343988213,1733169831536,-2877.76,0.00026369,120]
[343988214,1733169831575,-1140.61,0.00026369,120]
[343988215,1733169831615,-682.14,0.00026369,120]
[343988216,1733169831656,-729.35,0.00026369,120]
[343988217,1733169831696,-500.0,0.00026369,120]
[343988218,1733169831736,-522.94,0.00026369,120]
[343988219,1733169831775,-500.0,0.00026369,120]
[343988220,1733169831813,-823.11,0.00026369,120]
[343988221,1733169831850,-3498.94,0.00026369,120]
[343988222,1733169831887,-2298.11,0.00026369,120]
[343988223,1733169831924,-1433.32,0.00026369,120]
[343988224,1733169831964,-491.88239188,0.00026369,120]
[343988225,1733169832001,-500.0,0.00026369,120]
[343988226,1733169832037,-500.0,0.00026369,120]
[343988227,1733169832073,-1432.32,0.00026369,120]
[343988228,1733169832111,-1134.59,0.00026369,120]
[343988229,1733169832146,-718.76,0.00026369,120]
[343988230,1733169832184,-1883.27,0.00026369,120]
[343988231,1733169832221,-500.0,0.00026369,120]
[343988232,1733169832256,-500.0,0.00026369,120]
[343988233,1733169832293,-2924.44,0.00026369,120]
[343988234,1733169832331,-2057.6,0.00026369,120]
[343988235,1733169832371,-500.0,0.00026369,120]
[343988236,1733169832410,-500.0,0.00026369,120]
[343988237,1733169832446,-500.0,0.00026369,120]
[343988238,1733169832484,-7028.86,0.00026369,120]
[343988239,1733169832522,-1803.13,0.00026369,120]
[343988240,1733169832558,-500.0,0.00026369,120]
[343988241,1733169832595,-3102.05,0.00026369,120]
[343988242,1733169832634,-500.0,0.00026369,120]
[343988243,1733169832673,-1541.69,0.00026369,120]
[343988244,1733169832718,-573.8850828,0.00026369,120]
[343988245,1733169832759,-903.21,0.00026369,120]
[343988246,1733169832799,-500.0,0.00026369,120]
[343988247,1733169832860,-607.35552929,0.00026369,120]
[343988248,1733169832909,-500.0,0.00026369,120]
[343988249,1733169832949,-500.0,0.00026369,120]
[343988250,1733169832989,-1049.47,0.00026369,120]
[343988251,1733169833029,-806.28,0.00026369,120]
[343988252,1733169833174,-500.0,0.00026369,120]
[343988253,1733169833240,-1062.78,0.00026369,120]
[343988254,1733169833278,-500.0,0.00026369,120]
[343988255,1733169833316,-500.0,0.00026369,120]
[343988256,1733169833355,-529.81,0.00026369,120]
[343988257,1733169833393,-500.0,0.00026369,120]
[343988258,1733169833438,-5322.29,0.00026369,120]
[343988259,1733169833477,-1613.46,0.00026369,120]
[343988260,1733169833517,-663.6,0.00026369,120]
[343988261,1733169833560,-880.7,0.00026369,120]
[343988262,1733169833601,-500.0,0.00026369,120]
[343988263,1733169833641,-500.0,0.00026369,120]
[343988264,1733169833684,-500.0,0.00026369,120]
[343988265,1733169833723,-500.0,0.00026369,120]
[343988266,1733169833761,-683.6,0.00026369,120]
[343988267,1733169833800,-2061.14,0.00026369,30]
[343988268,1733169833837,-500.0,0.00026369,120]
[343988269,1733169833874,-1353.46,0.00026369,120]
[343988270,1733169833913,-584.0,0.00026369,120]
[343988271,1733169833955,-721.18,0.00026369,120]
[343988272,1733169833992,-500.0,0.00026369,120]
[343988273,1733169834029,-500.0,0.00026369,120]
[343988274,1733169834064,-500.0,0.00026369,120]
[343988275,1733169834101,-1668.31,0.00026369,120]
[343988276,1733169834139,-489.15503217,0.00026369,120]
[343988277,1733169834176,-500.0,0.00026369,120]
[343988278,1733169834215,-500.0,0.00026369,120]
[343988279,1733169834252,-500.0,0.00026369,120]
[343988280,1733169834289,-500.0,0.00026369,120]
[343988281,1733169834328,-559.05,0.00026369,120]
[343988282,1733169834368,-907.5,0.00026369,120]
[343988283,1733169834408,-658.13,0.00026369,120]
[343988284,1733169834450,-500.0,0.00026369,120]
[343988285,1733169834491,-518.27,0.00026369,120]
[343988286,1733169834532,-2812.6,0.00026369,120]
[343988287,1733169834577,-1551.24,0.00026369,120]
[343988288,1733169834617,-500.0,0.00026369,120]
[343988289,1733169834657,-622.04,0.00026369,120]
[343988290,1733169834697,-500.0,0.00026369,120]
[343988291,1733169834738,-1134.58,0.00026369,120]
[343988292,1733169834777,-525.17192759,0.00026369,120]
[343988293,1733169834817,-500.0,0.00026369,120]
[343988294,1733169834856,-723.17,0.00026369,120]
[343988295,1733169834893,-500.0,0.00026369,120]
[343988296,1733169834931,-1392.8,0.00026369,120]
[343988297,1733169834967,-703.37,0.00026369,120]
[343988298,1733169835002,-500.0,0.00026369,120]
[343988299,1733169835038,-500.0,0.00026369,120]
[343988300,1733169835072,-500.0,0.00026369,120]
[343988301,1733169835108,-1785.16,0.00026369,120]
[343988302,1733169835143,-672.83,0.00026369,120]
[343988303,1733169835178,-500.0,0.00026369,120]
[343988304,1733169835215,-2072.12,0.00026369,120]
[343988305,1733169835251,-2151.79,0.00026369,120]
[343988306,1733169835287,-671.1,0.00026369,120]
[343988307,1733169835322,-1217.44,0.00026369,60]
[343988308,1733169835358,-2095.96,0.00026369,120]
[343988309,1733169835393,-500.0,0.00026369,120]
[343988310,1733169835431,-500.0,0.00026369,120]
[343988311,1733169835468,-2399.96,0.00026369,120]
[343988312,1733169835507,-1205.02,0.00026369,120]
[343988313,1733169835545,-731.09,0.00026369,120]
[343988314,1733169835583,-517.92,0.00026369,120]
[343988315,1733169835624,-957.59,0.00026369,120]
[343988316,1733169835666,-500.0,0.00026369,120]
[343988317,1733169835709,-500.0,0.00026369,120]
[343988318,1733169835748,-964.02,0.00026369,120]
[343988319,1733169835786,-1155.0,0.00026369,120]
[343988320,1733169835822,-1599.85,0.00026369,120]
[343988321,1733169835860,-500.0,0.00026369,120]
[343988322,1733169835896,-3145.91,0.00026369,120]
[343988323,1733169835941,-500.0,0.00026369,120]
[343988324,1733169835980,-500.0,0.00026369,120]
[343988325,1733169836022,-500.0,0.00026369,120]
[343988326,1733169836059,-3095.03,0.00026369,120]
[343988327,1733169836095,-966.75,0.00026369,120]
[343988328,1733169836129,-1566.82,0.00026369,120]
[343988329,1733169836163,-3532.86,0.00026369,120]
[343988330,1733169836201,-2087.33,0.00026369,120]
[343988331,1733169836239,-4394.15,0.00026369,120]
[343988332,1733169836277,-1858.53,0.00026369,120]
[343988333,1733169836314,-500.0,0.00026369,120]
[343988334,1733169836352,-1050.27,0.00026369,120]
[343988335,1733169836390,-1419.7,0.00026369,120]
[343988336,1733169836426,-704.36,0.00026369,120]
[343988337,1733169836465,-500.0,0.00026369,120]
[343988338,1733169836502,-1155.5,0.00026369,120]
[343988339,1733169836538,-2485.86,0.00026369,120]
[343988340,1733169836576,-3307.46,0.00026369,120]
[343988341,1733169836614,-500.0,0.00026369,120]
[343988342,1733169836656,-619.4,0.00026369,120]
[343988343,1733169836695,-2954.23,0.00026369,120]
[343988344,1733169836734,-500.0,0.00026369,120]
[343988345,1733169836769,-1622.42,0.00026369,120]
[343988346,1733169836806,-1433.94,0.00026369,120]
[343988347,1733169837013,-1486.96,0.00026369,120]
[343988348,1733169837052,-500.0,0.00026369,120]
[343988349,1733169837090,-5702.56,0.00026369,120]
[343988350,1733169837127,-553.01,0.00026369,120]
[343988351,1733169837163,-617.67,0.00026369,120]
[343988352,1733169837200,-516.62800789,0.00026369,120]
[343988353,1733169837235,-4667.69,0.00026369,120]
[343988354,1733169837268,-500.0,0.00026369,120]
[343988355,1733169837308,-909.9,0.00026369,120]
[343988356,1733169837346,-2769.56,0.00026369,120]
[343988357,1733169837384,-1527.45,0.00026369,120]
[343988358,1733169837421,-500.0,0.00026369,120]
[343988359,1733169837459,-500.0,0.00026369,120]
[343988360,1733169837496,-2607.43,0.00026369,120]
[343988361,1733169837534,-1429.2,0.00026369,120]
[343988362,1733169837570,-500.0,0.00026369,120]
[343988363,1733169837609,-500.0,0.00026369,120]
[343988364,1733169837652,-500.0,0.00026369,120]
[343988365,1733169837692,-1289.36,0.00026369,120]
[343988366,1733169837733,-1181.82,0.00026369,120]
[343988367,1733169837773,-2609.47,0.00026369,120]
[343988368,1733169837810,-847.91,0.00026369,120]
[343988369,1733169837848,-500.0,0.00026369,120]
[343988370,1733169837888,-1577.07,0.00026369,120]
[343988371,1733169837925,-500.0,0.00026369,120]
[343988372,1733169837968,-242.75856799,0.00026369,120]
[343988373,1733169838005,-1229.5,0.00026369,120]
[343988374,1733169838041,-1146.75,0.00026369,120]
[343988375,1733169838075,-870.78,0.00026369,120]
[343988376,1733169838109,-2309.42,0.00026369,120]
[343988377,1733169838144,-500.0,0.00026369,120]
[343988378,1733169838179,-5287.35,0.00026369,120]
[343988379,1733169838216,-6116.17,0.00026369,120]
[343988380,1733169838253,-793.22,0.00026369,120]
[343988381,1733169838291,-500.0,0.00026369,120]
[343988382,1733169838327,-500.0,0.00026369,120]
[343988383,1733169838364,-1023.67,0.00026369,120]
[343988384,1733169838401,-500.0,0.00026369,120]
[343988385,1733169838439,-2550.03,0.00026369,120]
[343988386,1733169838477,-1153.56,0.00026369,120]